bitfinex-derivatives/quotes_ETHF0:USTF0_20210702
["timestamp","ask_amount","ask_price","bid_price","bid_amount"]
[1625257788697,2.20527,2091.8,2091.7,3.20527]
[1625257790748,2.20527,2091.8,2091.7,2.20527]
[1625257791200,2.20527,2091.8,2091.7,3.20527]
[1625257792400,2.20527,2091.8,2091.7,6.28417]
[1625257792503,2.20527,2092.1,2091.7,6.28417]
[1625257793703,2.20527,2092.1,2092.0,58.88467]
[1625257793804,2.20527,2092.1,2092.0,59.88467]
[1625257799272,2.20527,2092.1,2092.0,57.6794]
[1625257800123,2.20527,2092.1,2092.0,1.0]
[1625257800225,2.20527,2092.1,2091.7,2.20527]
[1625257801232,2.20527,2092.1,2090.8,1.40501541]
[1625257801334,2.20527,2092.1,2091.3,1.0]
[1625257801534,2.20527,2092.1,2090.7,6.16436629]
[1625257801633,2.20527,2092.1,2090.7,1.40536629]
[1625257801784,5.28897,2091.1,2091.0,2.20527]
[1625257801883,64.43387,2091.1,2091.0,2.20527]
[1625257802192,64.43387,2091.1,2090.7,2.20527]
[1625257803754,2.20527,2090.8,2090.7,2.20527]
[1625257813733,2.20527,2090.8,2090.7,3.20527]
[1625257818555,2.20527,2090.8,2090.7,2.20527]
[1625257821122,2.20527,2090.8,2090.5,2.20527]
[1625257821773,2.20527,2090.6,2090.2,2.20527]
[1625257822023,2.20527,2090.6,2089.4,1.40365968]
[1625257822125,2.20527,2090.6,2089.3,1.40370003]
[1625257822375,47.6121,2090.1,2089.4,1.0]
[1625257822475,50.8449,2090.1,2089.4,1.0]
[1625257823132,3.2328,2090.1,2089.4,1.0]
[1625257823832,2.20527,2090.0,2089.9,2.20527]
[1625257823934,2.20527,2090.0,2089.9,3.20527]
[1625257824133,2.20527,2090.0,2089.9,2.20527]
[1625257826238,2.20527,2090.0,2089.7,3.20527]
[1625257829802,2.20527,2090.0,2089.8,2.20527]
[1625257830106,2.20527,2090.0,2089.8,3.20527]
[1625257830656,2.20527,2090.0,2089.8,1.0]
[1625257833022,2.20527,2090.0,2089.9,47.5389]
[1625257833173,2.20527,2090.0,2089.9,48.5389]
[1625257834176,2.20527,2090.0,2089.9,1.0]
[1625257834734,2.20527,2090.0,2089.7,4.41054]
[1625257834838,2.20527,2090.0,2089.7,5.41054]
[1625257836137,2.20527,2090.0,2089.8,53.2301]
[1625257836239,2.20527,2090.0,2089.9,1.0]
[1625257836336,2.20527,2090.0,2089.7,4.41054]
[1625257836435,2.20527,2090.0,2089.8,1.0]
[1625257838107,2.20527,2090.0,2089.9,52.705]
[1625257838211,2.20527,2090.0,2089.8,1.0]
[1625257838765,2.20527,2090.0,2089.9,51.1332]
[1625257838862,2.20527,2090.0,2089.9,1.0]
[1625257839366,2.20527,2090.0,2089.9,52.1332]
[1625257839472,2.20527,2090.0,2089.9,1.0]
[1625257840722,59.00497,2090.0,2089.9,1.0]
[1625257841423,2.20527,2090.0,2089.9,1.0]
[1625257842075,44.84507,2090.0,2089.9,1.0]
[1625257842274,44.84507,2090.0,2088.8,1.40278305]
[1625257842376,44.84507,2090.0,2088.9,1.0]
[1625257842474,48.13127,2090.0,2088.9,1.0]
[1625257843932,2.20527,2089.4,2089.3,2.20527]
[1625257844028,1.20527,2089.4,2089.3,2.20527]
[1625257846282,2.20527,2089.5,2089.3,2.20527]
[1625257847936,2.20527,2089.5,2089.4,2.20527]
[1625257849495,3.20527,2089.8,2089.4,51.89937]
[1625257849644,2.20527,2089.8,2089.4,51.89937]
[1625257849892,2.20527,2089.8,2089.7,2.20527]
[1625257850559,56.38897,2089.8,2089.7,2.20527]
[1625257851114,2.20527,2089.8,2089.7,2.20527]
[1625257855925,2.20527,2089.8,2089.4,2.20527]
[1625257856075,4.72197,2089.8,2089.4,2.20527]
[1625257856428,4.72197,2089.8,2089.2,2.20527]
[1625257857026,59.9259,2089.4,2089.2,2.20527]
[1625257857326,1.0,2089.7,2089.2,2.20527]
[1625257857428,4.72197,2089.8,2089.2,2.20527]
[1625257857979,2.20527,2089.4,2089.2,2.20527]
[1625257859430,2.20527,2089.4,2089.3,57.9887]
[1625257859532,2.20527,2089.4,2089.3,61.5117]
[1625257859632,2.20527,2089.8,2089.3,61.5117]
[1625257859983,2.20527,2089.8,2089.6,2.20527]
[1625257861334,51.2355,2089.7,2089.6,2.20527]
[1625257861635,5.71337,2089.8,2089.6,2.20527]
[1625257861985,2.20527,2089.7,2089.6,2.20527]
[1625257864142,2.20527,2089.7,2089.2,2.20527]
[1625257865997,2.20527,2089.3,2089.2,2.20527]
[1625257867152,1.0,2089.6,2089.2,2.20527]
[1625257867302,2.20527,2089.7,2089.2,47.54957]
[1625257868009,2.20527,2089.7,2089.5,2.20527]
[1625257868415,2.20527,2089.7,2089.2,2.20527]
[1625257870073,2.20527,2089.3,2089.2,2.20527]
[1625257871928,4.70637,2089.3,2089.2,2.20527]
[1625257872583,49.24157,2089.3,2089.2,2.20527]
[1625257872729,4.70637,2089.3,2089.2,2.20527]
[1625257874536,56.03507,2089.3,2089.2,2.20527]
[1625257875138,4.70637,2089.3,2089.2,2.20527]
[1625257877793,50.60487,2089.3,2089.2,2.20527]
[1625257878592,4.70637,2089.3,2089.2,2.20527]
[1625257882114,1.0,2089.6,2089.2,2.20527]
[1625257882215,2.20527,2089.7,2089.2,5.81937]
[1625257884180,2.20527,2089.7,2089.2,8.02464]
[1625257887146,55.6076,2089.3,2089.2,4.41054]
[1625257887622,55.6076,2089.3,2088.5,1.40721593]
[1625257887702,55.6076,2089.3,2088.2,1.40725793]
[1625257887800,56.6076,2089.3,2088.2,1.40725793]
[1625257888003,56.6076,2089.3,2088.1,1.40736206]
[1625257888201,2.20527,2088.8,2088.7,2.20527]
[1625257888303,4.56657,2088.8,2088.7,2.20527]
[1625257890161,6.77184,2088.8,2088.7,2.20527]
[1625257893073,66.93234,2088.8,2088.5,2.20527]
[1625257894280,6.77184,2088.8,2088.5,2.20527]
[1625257898239,6.77184,2088.8,2088.5,4.41054]
[1625257903805,6.77184,2088.8,2088.7,52.2706]
[1625257904501,6.77184,2088.8,2088.5,4.41054]
[1625257906053,0.9453,2089.5,2088.5,4.41054]
[1625257906155,1.0,2089.7,2088.5,4.41054]
[1625257906256,2.20527,2088.6,2088.5,4.41054]
[1625257906957,1.0,2089.4,2088.5,4.41054]
[1625257908066,1.0,2089.4,2088.8,52.1699]
[1625257908165,1.39010822,2090.1,2088.8,52.1699]
[1625257908264,2.20527,2089.4,2089.3,2.20527]
[1625257908616,2.20527,2089.4,2089.3,48.97407]
[1625257908716,1.39115711,2090.5,2089.3,48.97407]
[1625257909370,1.0,2090.4,2089.3,48.97407]
[1625257909572,1.0,2090.4,2089.3,2.20527]
[1625257910123,1.0,2090.4,2089.4,47.6157]
[1625257910324,2.20527,2089.9,2089.8,2.20527]
[1625257910470,2.20527,2089.9,2089.8,3.088]
[1625257911372,2.20527,2089.9,2089.3,2.20527]
[1625257911478,59.33247,2089.9,2089.3,2.20527]
[1625257911841,2.20527,2089.9,2089.3,2.20527]
[1625257912343,2.20527,2089.4,2089.3,2.20527]
[1625257919906,1.0,2090.1,2089.3,2.20527]
[1625257920007,1.0,2090.1,2089.4,5.0]
[1625257920309,1.0,2090.1,2090.0,2.20527]
[1625257920459,1.39370685,2090.3,2090.0,45.77677]
[1625257920759,2.20527,2090.4,2090.0,45.77677]
[1625257922310,2.20527,2090.4,2090.3,2.20527]
[1625257923362,2.20527,2090.6,2090.3,2.20527]
[1625257924363,2.20527,2090.6,2090.5,2.20527]
[1625257924464,2.20527,2090.6,2090.5,5.43287]
[1625257925917,1.0,2091.2,2090.5,5.43287]
[1625257926019,1.0,2091.2,2090.8,45.5738]
[1625257926120,1.39365766,2091.4,2090.8,45.5738]
[1625257926219,1.91077839,2091.5,2090.8,45.5738]
[1625257926422,1.91077839,2091.5,2091.4,2.20527]
[1625257926520,1.91077839,2091.5,2091.4,5.87127]
[1625257926675,2.20527,2091.6,2091.4,5.87127]
[1625257926823,2.20527,2091.6,2091.4,53.47217]
[1625257927073,3.78989497,2092.0,2091.4,53.47217]
[1625257927174,6.41807558,2092.2,2091.4,53.47217]
[1625257927331,2.79121212,2092.2,2091.4,53.47217]
[1625257927533,18.76507576,2092.4,2091.4,53.47217]
[1625257927534,17.92623427,2092.4,2091.4,53.47217]
[1625257927934,1.0,2092.3,2091.4,53.47217]
[1625257928133,1.0,2092.3,2091.4,5.87127]
[1625257928345,2.20527,2091.8,2091.4,5.87127]
[1625257928783,2.20527,2091.8,2091.5,41.0199]
[1625257929838,2.20527,2091.8,2091.4,5.87127]
[1625257930401,2.20527,2091.8,2091.7,2.20527]
[1625257931148,2.20527,2092.0,2091.7,2.20527]
[1625257932348,2.20527,2092.0,2091.7,4.41054]
[1625257933599,2.20527,2092.0,2091.9,55.7499]
[1625257933752,2.20527,2092.0,2091.9,3.0795]
[1625257934651,2.20527,2092.0,2091.9,55.5004]
[1625257934802,2.20527,2092.0,2091.9,3.0795]
[1625257935507,2.20527,2092.0,2091.9,55.8478]
[1625257936108,2.20527,2092.0,2091.9,3.0795]
[1625257938763,2.20527,2092.0,2091.7,4.41054]
[1625257940919,2.20527,2092.0,2091.9,44.3448]
[1625257941270,2.20527,2092.0,2091.7,4.41054]
[1625257944340,2.20527,2092.0,2091.8,47.4083]
[1625257944443,2.20527,2092.0,2091.8,2.8917]
[1625257945244,48.35727,2092.0,2091.8,2.8917]
[1625257945345,2.20527,2092.0,2091.8,2.8917]
[1625257946048,2.20527,2092.0,2091.7,4.41054]
[1625257950463,1.0,2092.2,2091.7,4.41054]
[1625257950562,2.20527,2092.3,2091.7,7.23104]
[1625257950715,15.1365,2092.4,2091.7,7.23104]
[1625257951417,2.20527,2092.6,2091.7,7.23104]
[1625257951566,2.20527,2092.6,2091.7,12.23104]
[1625257952067,2.20527,2092.6,2092.5,57.4689]
[1625257952170,2.20527,2092.6,2092.5,60.2307]
[1625257952521,2.20527,2092.6,2092.5,64.64124]
[1625257955227,2.20527,2093.0,2092.5,64.64124]
[1625257956278,2.20527,2093.0,2092.5,69.64124]
[1625257956579,2.20527,2093.0,2092.9,2.20527]
[1625257957240,2.20527,2093.0,2092.9,45.07427]
[1625257957842,2.20527,2093.3,2092.9,45.07427]
[1625257958599,2.20527,2093.3,2093.2,2.20527]
[1625257958752,2.20527,2093.3,2093.2,4.77997]
[1625257968941,1.0,2093.8,2093.2,9.77997]
[1625257969042,14.4222,2094.3,2093.2,9.77997]
[1625257969640,14.4222,2094.3,2094.2,41.0844]
[1625257969742,14.4222,2094.3,2094.2,44.7035]
[1625257970042,15.5369,2095.6,2094.2,44.7035]
[1625257970158,4.759,2095.7,2094.2,44.7035]
[1625257970256,5.759,2095.7,2094.2,44.7035]
[1625257970658,2.20527,2095.0,2094.5,2.20527]
[1625257972616,2.20527,2095.0,2094.9,2.20527]
[1625257972866,2.20527,2095.0,2094.9,4.87107]
[1625257972969,2.20527,2095.0,2093.6,1.0]
[1625257973071,1.0,2094.9,2093.5,14.6361]
[1625257973569,42.3103,2094.4,2093.5,14.6361]
[1625257973668,1.0,2094.3,2093.5,14.6361]
[1625257973769,3.3818,2094.3,2093.5,14.6361]
[1625257973918,3.3818,2094.3,2092.9,41.1814]
[1625257974119,3.3818,2094.3,2092.9,46.1814]
[1625257974671,2.20527,2094.2,2093.9,2.20527]
[1625257976728,2.20527,2094.2,2094.1,2.20527]
[1625257976828,2.20527,2094.2,2094.1,47.15287]
[1625257977442,2.20527,2094.2,2094.1,2.20527]
[1625257982005,4.52627,2094.2,2094.1,2.20527]
[1625257984621,4.52627,2094.2,2094.1,55.50657]
[1625257985823,2.321,2094.2,2094.1,55.50657]
[1625257985984,2.20527,2094.4,2094.1,55.50657]
[1625257986883,2.20527,2094.4,2094.3,2.20527]
[1625257993214,2.20527,2094.4,2094.1,2.20527]
[1625257993317,5.24307,2094.4,2094.1,2.20527]
[1625257993767,5.24307,2094.4,2093.0,14.9449]
[1625257993865,45.0599,2094.2,2093.0,14.9449]
[1625257993966,1.0,2094.1,2093.0,14.9449]
[1625257994227,1.0,2094.1,2092.3,5.0]
[1625257994818,2.20527,2093.3,2093.2,2.20527]
[1625257994921,4.96237,2093.3,2093.2,2.20527]
[1625257996321,2.20527,2093.3,2093.2,2.20527]
[1625257996479,1.0,2094.1,2093.2,2.20527]
[1625257996671,1.0,2094.1,2093.2,5.65527]
[1625257996769,14.7454,2094.9,2093.2,5.65527]
[1625257996872,2.20527,2094.0,2093.7,2.20527]
[1625257996969,2.20527,2094.0,2093.7,5.67237]
[1625257997272,2.20527,2094.0,2093.8,53.4808]
[1625257998073,2.20527,2094.0,2093.7,5.67237]
[1625257998873,2.20527,2094.0,2093.9,2.20527]
[1625257999678,2.20527,2094.2,2093.9,2.20527]
[1625258000429,2.20527,2094.2,2093.9,5.03207]
[1625258000833,2.20527,2094.2,2094.1,2.20527]
[1625258006761,2.20527,2094.2,2093.9,2.20527]
[1625258008868,4.41054,2094.2,2093.9,2.20527]
[1625258010927,4.41054,2094.2,2093.4,2.20527]
[1625258011128,5.41054,2094.2,2093.4,2.20527]
[1625258011329,47.6857,2094.1,2093.4,2.20527]
[1625258011429,48.6857,2094.1,2093.4,2.20527]
[1625258012889,4.41054,2093.5,2093.4,2.20527]
[1625258012991,7.23474,2093.5,2093.4,2.20527]
[1625258016397,7.23474,2093.5,2093.2,2.20527]
[1625258018853,7.23474,2093.5,2093.4,50.3867]
[1625258019159,7.23474,2093.5,2093.2,2.20527]
[1625258019967,2.8242,2093.5,2093.2,2.20527]
[1625258020117,1.0,2094.1,2093.2,2.20527]
[1625258020920,2.20527,2093.7,2093.6,2.20527]
[1625258026028,2.20527,2093.7,2093.6,58.45617]
[1625258026828,2.20527,2093.7,2093.6,2.20527]
[1625258027279,2.20527,2093.7,2093.6,50.70797]
[1625258027480,1.0,2094.4,2093.6,50.70797]
[1625258027632,1.0,2094.4,2093.6,53.94227]
[1625258027982,1.0,2094.4,2094.0,48.4912]
[1625258028080,14.7454,2094.9,2094.0,48.4912]
[1625258028183,1.0,2094.8,2094.0,48.4912]
[1625258028580,1.0,2094.8,2093.6,53.94227]
[1625258028943,3.9512,2094.8,2093.6,53.94227]
[1625258029043,2.20527,2094.4,2094.3,2.20527]
[1625258029543,2.20527,2094.4,2093.6,2.20527]
[1625258029696,3.20527,2094.4,2092.9,15.5754]
[1625258030197,62.4707,2093.7,2092.9,15.5754]
[1625258030296,63.4707,2093.7,2092.9,15.5754]
[1625258030446,63.4707,2093.7,2091.8,2.78154231]
[1625258030549,63.4707,2093.7,2091.9,5.0]
[1625258030646,63.4707,2093.7,2091.7,7.78237673]
[1625258030795,63.4707,2093.7,2091.7,23.52547673]
[1625258031050,2.20527,2093.2,2092.9,2.20527]
[1625258031146,59.2853,2093.0,2092.9,2.20527]
[1625258031748,59.2853,2093.0,2091.7,15.7431]
[1625258031850,1.0,2092.9,2091.7,15.7431]
[1625258032050,1.0,2092.9,2091.1,90.94738881]
[1625258032299,1.0,2092.9,2091.1,88.1601]
[1625258033054,2.20527,2091.9,2091.7,2.20527]
[1625258033152,5.09437,2091.9,2091.7,2.20527]
[1625258035118,2.20527,2091.8,2091.7,2.20527]
[1625258041602,4.76417,2091.8,2091.7,2.20527]
[1625258042053,62.99947,2091.8,2091.7,2.20527]
[1625258042152,62.99947,2091.8,2090.8,2.80031921]
[1625258042253,63.99947,2091.8,2090.8,2.80031921]
[1625258042453,63.99947,2091.8,2090.6,2.80022621]
[1625258042854,63.99947,2091.8,2090.5,2.80075882]
[1625258043204,2.20527,2090.9,2090.8,2.20527]
[1625258053702,2.20527,2090.9,2090.6,2.20527]
[1625258053902,2.20527,2090.9,2089.4,2.80402335]
[1625258054003,1.0,2090.8,2089.4,2.80402335]
[1625258054108,1.0,2090.8,2089.2,3.64523035]
[1625258054205,1.0,2090.8,2089.1,2.80625769]
[1625258054904,54.7779,2090.3,2089.2,5.0]
[1625258055008,59.0003,2090.3,2089.2,5.0]
[1625258055304,2.20527,2089.8,2089.5,2.20527]
[1625258057322,2.20527,2089.6,2089.5,2.20527]
[1625258058536,1.07162146,2089.6,2089.5,2.20527]
[1625258061494,1.07162146,2089.6,2089.5,61.97127]
[1625258062093,1.07162146,2089.6,2089.5,2.20527]
[1625258064495,1.07162146,2089.6,2089.5,61.69457]
[1625258064597,1.07162146,2089.6,2089.5,2.20527]
[1625258075286,1.07162146,2089.6,2089.5,61.23037]
[1625258075592,1.0,2090.8,2089.5,66.23037]
[1625258076340,1.0,2090.8,2090.0,52.1923]
[1625258076440,68.7593,2090.9,2089.8,2.6153]
[1625258076790,69.7593,2090.9,2089.8,2.6153]
[1625258077142,44.5063,2090.5,2089.8,2.6153]
[1625258077446,2.20527,2090.0,2089.9,2.20527]
[1625258078301,5.91347,2090.0,2089.5,2.20527]
[1625258078399,5.91347,2090.0,2088.9,14.449]
[1625258078502,6.91347,2090.0,2088.9,14.449]
[1625258078749,6.91347,2090.0,2088.4,5.0]
[1625258079253,6.91347,2090.0,2088.1,2.79153649]
[1625258079357,6.91347,2090.0,2087.9,15.3129]
[1625258079454,2.20527,2088.3,2088.2,2.20527]
[1625258079606,5.78647,2088.3,2088.2,2.20527]
[1625258079859,4.65223826,2088.3,2088.2,2.20527]
[1625258080206,58.24473826,2088.3,2088.2,2.20527]
[1625258080974,4.65223826,2088.3,2088.2,2.20527]
[1625258083076,1.07103826,2088.3,2088.2,2.20527]
[1625258083276,1.0,2089.2,2088.2,2.20527]
[1625258083376,3.0449,2091.2,2088.2,2.20527]
[1625258083478,2.20527,2088.9,2088.8,2.20527]
[1625258085043,1.0,2089.8,2088.8,2.20527]
[1625258085142,48.8755,2090.4,2088.8,5.33457]
[1625258085242,16.4844,2089.9,2088.8,5.33457]
[1625258085492,2.20527,2089.1,2088.8,7.53984]
[1625258085994,48.9596,2088.9,2088.8,7.53984]
[1625258086294,48.9596,2088.9,2088.8,3.1293]
[1625258086395,48.9596,2088.9,2088.2,4.759]
[1625258086744,48.9596,2088.9,2087.7,55.4111]
[1625258086844,49.9596,2088.9,2087.7,55.4111]
[1625258086945,1.0,2088.9,2087.7,55.4111]
[1625258087345,1.0,2088.9,2087.8,17.5191]
[1625258087445,1.0,2088.9,2087.8,20.5298]
[1625258087545,2.20527,2088.6,2088.4,2.20527]
[1625258087694,2.20527,2088.6,2088.4,5.11167]
[1625258088095,1.0,2089.2,2088.4,5.11167]
[1625258088197,51.731,2089.3,2088.4,5.11167]
[1625258088949,1.0,2089.7,2088.4,5.11167]
[1625258089500,2.20527,2089.1,2089.0,2.20527]
[1625258089599,2.20527,2089.1,2088.4,5.11167]
[1625258091408,48.4124,2089.0,2088.4,5.11167]
[1625258091510,2.20527,2088.5,2088.4,5.11167]
[1625258092061,2.20527,2088.5,2088.4,2.9064]
[1625258092216,2.20527,2088.5,2088.2,4.759]
[1625258092718,2.20527,2088.5,2087.3,5.0]
[1625258092818,3.20527,2088.5,2087.2,55.8648]
[1625258093371,3.20527,2088.5,2087.3,17.428706]
[1625258093575,2.20527,2088.1,2087.9,2.20527]
[1625258094224,2.20527,2088.1,2087.9,48.30687]
[1625258094831,2.20527,2088.5,2087.9,48.30687]
[1625258095383,2.20527,2088.5,2087.9,2.20527]
[1625258095581,2.20527,2088.5,2088.4,2.20527]
[1625258097791,2.20527,2088.5,2087.9,2.20527]
[1625258098499,1.0,2089.0,2087.9,2.20527]
[1625258098649,1.0,2089.0,2087.9,5.74707]
[1625258098751,1.0,2089.0,2087.9,10.50607]
[1625258099601,3.20527,2089.0,2088.7,5.60857]
[1625258099701,2.20527,2089.0,2088.7,5.60857]
[1625258101705,52.4197,2088.8,2088.7,5.60857]
[1625258101803,2.20527,2089.0,2088.7,3.4033]
[1625258101903,2.20527,2089.0,2088.5,2.20527]
[1625258103567,2.20527,2088.6,2088.5,2.20527]
[1625258108284,2.20527,2089.0,2088.5,2.20527]
[1625258108384,2.20527,2089.0,2088.5,5.03917]
[1625258108790,2.20527,2089.0,2088.5,10.03917]
[1625258108995,1.0,2089.6,2088.5,10.03917]
[1625258109098,15.7395,2089.7,2088.5,10.03917]
[1625258109201,15.7395,2089.7,2089.2,43.6336]
[1625258109298,14.7395,2089.7,2089.2,43.6336]
[1625258109448,88.3649,2090.5,2089.2,46.5972]
[1625258109599,2.20527,2089.7,2089.4,2.20527]
[1625258110151,2.20527,2089.7,2089.4,51.89957]
[1625258110652,1.0,2091.1,2089.4,51.89957]
[1625258111104,1.0,2091.1,2089.5,17.408103]
[1625258111305,1.0,2091.1,2090.1,44.0331]
[1625258111455,15.7448,2091.2,2090.1,46.4725]
[1625258111608,2.20527,2090.6,2090.5,2.20527]
[1625258113113,2.20527,2090.6,2089.7,81.5052]
[1625258113610,2.20527,2090.6,2090.2,2.20527]
[1625258113711,2.20527,2090.6,2090.2,5.91417]
[1625258114813,46.41807,2090.6,2090.2,5.91417]
[1625258114914,2.20527,2090.6,2090.2,5.91417]
[1625258115715,2.20527,2090.3,2090.2,5.91417]
[1625258135314,1.0,2090.8,2090.2,11.87277]
[1625258135465,1.0,2091.1,2090.2,11.87277]
[1625258135564,1.96430622,2091.6,2090.2,11.87277]
[1625258135766,1.96430622,2091.6,2091.1,55.5765]
[1625258135865,4.49676059,2092.1,2091.5,2.20527]
[1625258135866,2.20527,2091.7,2091.5,2.20527]
[1625258136075,1.96783051,2092.1,2091.5,2.20527]
[1625258136378,1.96808334,2092.3,2091.7,55.5711]
[1625258136476,1.96808334,2092.3,2091.7,58.362]
[1625258136828,19.99281191,2092.6,2091.7,58.362]
[1625258136829,18.30565896,2092.6,2091.7,58.362]
[1625258136930,17.30565896,2092.6,2091.7,58.362]
[1625258137180,1.96785896,2092.6,2091.7,58.362]
[1625258137332,1.96785896,2092.6,2091.7,2.7909]
[1625258137831,2.20527,2092.1,2091.7,2.7909]
[1625258138336,2.20527,2092.3,2091.7,2.7909]
[1625258139185,2.20527,2092.3,2091.7,49.769]
[1625258139285,2.20527,2092.3,2091.7,2.7909]
[1625258139839,2.20527,2092.3,2092.0,2.20527]
[1625258141843,2.20527,2092.2,2092.0,2.20527]
[1625258153531,2.20527,2092.2,2092.1,56.4349]
[1625258153639,2.20527,2092.2,2092.0,2.20527]
[1625258155135,2.20527,2092.2,2092.1,54.0932]
[1625258155235,2.20527,2092.2,2092.1,56.6124]
[1625258156238,2.20527,2092.2,2092.1,2.5192]
[1625258156438,2.20527,2092.3,2092.1,2.5192]
[1625258158049,2.20527,2092.3,2092.2,2.20527]
[1625258158855,2.20527,2092.3,2092.2,52.34287]
[1625258160221,2.20527,2092.3,2092.2,2.20527]
[1625258161539,50.24927,2092.3,2092.2,2.20527]
[1625258162540,2.20527,2092.3,2092.2,2.20527]
[1625258163192,2.20527,2092.3,2092.2,4.96197]
[1625258165246,2.20527,2092.3,2092.2,56.77487]
[1625258166895,2.20527,2092.3,2092.2,4.96197]
[1625258170261,2.20527,2092.3,2092.2,53.18237]
[1625258171217,2.20527,2092.3,2092.2,4.96197]
[1625258173573,2.20527,2092.3,2092.2,48.48307]
[1625258176780,2.20527,2092.7,2092.2,48.48307]
[1625258177340,2.20527,2092.7,2092.6,46.127]
[1625258178192,2.20527,2093.2,2092.6,48.33227]
[1625258178992,16.2964,2093.6,2092.6,48.33227]
[1625258180244,2.20527,2093.5,2093.2,2.20527]
[1625258182064,2.20527,2093.5,2092.6,2.20527]
[1625258182166,2.20527,2092.7,2092.6,4.41054]
[1625258182265,5.42357,2092.7,2092.6,4.41054]
[1625258183169,3.2183,2092.7,2092.6,4.41054]
[1625258183717,3.2183,2092.7,2092.6,50.69504]
[1625258183819,2.20527,2092.9,2092.6,50.69504]
[1625258185373,1.0,2093.2,2092.6,50.69504]
[1625258185473,2.20527,2093.3,2092.6,50.69504]
[1625258185574,3.20527,2093.3,2092.6,53.70364]
[1625258186177,3.20527,2093.3,2092.9,2.20527]
[1625258186284,2.20527,2093.3,2092.9,2.20527]
[1625258188231,2.20527,2093.3,2093.2,2.20527]
[1625258191393,2.20527,2093.3,2093.2,46.36387]
[1625258193698,2.20527,2093.3,2093.2,2.20527]
[1625258194249,1.0,2093.9,2093.2,2.20527]
[1625258194398,2.20527,2093.8,2093.2,4.41054]
[1625258196301,2.20527,2093.3,2093.2,4.41054]
[1625258198557,2.20527,2093.3,2093.2,61.68054]
[1625258199067,1.0,2093.7,2093.2,61.68054]
[1625258199207,2.20527,2093.8,2093.2,65.12344]
[1625258200369,2.20527,2093.8,2093.7,7.85304]
[1625258201519,2.20527,2093.8,2093.7,3.4425]
[1625258201922,57.16217,2093.8,2093.7,3.4425]
[1625258202072,57.16217,2093.8,2093.2,3.4429]
[1625258202374,57.16217,2093.8,2093.4,2.20527]
[1625258203877,57.16217,2093.8,2093.2,2.20527]
[1625258203978,52.5878,2093.5,2093.2,2.20527]
[1625258204378,4.41054,2093.3,2093.2,2.20527]
[1625258204478,56.99334,2093.3,2093.2,2.20527]
[1625258204630,56.99334,2093.3,2092.8,2.20527]
[1625258204729,59.58334,2093.3,2092.8,2.20527]
[1625258207286,56.99334,2093.3,2092.8,2.20527]
[1625258208386,2.20527,2092.9,2092.8,2.20527]
[1625258209045,2.20527,2092.9,2092.8,51.17057]
[1625258209145,2.20527,2092.9,2092.8,2.20527]
[1625258210898,2.20527,2092.9,2092.8,57.20977]
[1625258211450,2.20527,2092.9,2092.8,2.20527]
[1625258212106,2.20527,2092.9,2092.8,58.97347]
[1625258212968,2.20527,2092.9,2092.8,2.20527]
[1625258214130,2.20527,2092.9,2092.8,55.88717]
[1625258215283,2.20527,2092.9,2092.8,58.72027]
[1625258215838,1.40102893,2094.2,2092.8,58.72027]
[1625258216292,1.4018968,2094.3,2092.8,58.72027]
[1625258216389,2.20527,2093.8,2093.7,2.20527]
[1625258216540,2.20527,2093.8,2093.7,5.46267]
[1625258216890,42.86787,2093.8,2093.7,5.46267]
[1625258216990,2.20527,2093.8,2093.7,3.2574]
[1625258219919,2.20527,2093.8,2092.4,16.4387]
[1625258220010,1.0,2093.7,2092.4,15.4387]
[1625258220364,2.7571,2093.4,2092.4,15.4387]
[1625258220463,2.20527,2093.2,2093.0,2.20527]
[1625258222432,4.41054,2093.2,2093.0,59.33887]
[1625258222535,4.41054,2093.2,2093.0,2.20527]
[1625258227168,2.20527,2093.2,2093.0,2.20527]
[1625258228119,1.0,2093.6,2093.0,2.20527]
[1625258228221,1.40124679,2093.9,2093.1,55.972]
[1625258228320,2.40124679,2093.9,2093.1,55.972]
[1625258228470,2.20527,2093.5,2093.1,55.972]
[1625258230632,2.20527,2093.5,2093.0,2.20527]
[1625258232336,2.20527,2093.5,2093.3,45.8977]
[1625258232441,2.20527,2093.5,2093.0,2.20527]
[1625258233589,2.20527,2093.5,2093.4,46.5192]
[1625258234299,2.20527,2093.5,2093.3,58.149]
[1625258234540,2.20527,2093.5,2093.4,2.20527]
[1625258235392,2.20527,2093.5,2093.4,57.78507]
[1625258236444,2.20527,2093.5,2093.4,60.29997]
[1625258240401,2.20527,2093.5,2093.4,4.72017]
[1625258240501,2.20527,2093.5,2093.4,2.20527]
[1625258243467,52.43957,2093.5,2093.4,2.20527]
[1625258243818,2.20527,2093.5,2093.4,2.20527]
[1625258247588,5.40687,2093.5,2093.0,2.20527]
[1625258247690,5.40687,2093.5,2092.5,1.40773628]
[1625258247789,53.2525,2093.1,2092.5,1.40773628]
[1625258248190,53.2525,2093.1,2092.4,1.40867925]
[1625258248292,54.2525,2093.1,2092.4,1.40867925]
[1625258248498,54.2525,2093.1,2092.2,1.40884979]
[1625258248593,2.20527,2092.3,2092.2,1.40884979]
[1625258248697,5.37937,2092.3,2092.2,1.40884979]
[1625258248896,5.37937,2092.3,2092.1,2.20527]
[1625258249696,5.37937,2092.3,2091.9,3.61459478]